bitfinex/quotes_ETHUSD_20251010
["timestamp","ask_amount","ask_price","bid_price","bid_amount"]
[1760131294916,2.59169041,3609.2,3599.5,0.39974593]
[1760131295122,2.59169041,3609.2,3599.3,0.83086612]
[1760131295306,2.59169041,3609.2,3599.1,3.46444421]
[1760131295307,2.59169041,3609.2,3599.1,3.29531033]
[1760131295508,2.59169041,3609.2,3599.2,0.23437113]
[1760131295819,0.22767979,3614.3,3599.2,0.29419366]
[1760131296122,0.33153202,3619.2,3609.4,0.3645404]
[1760131296324,0.33153202,3619.2,3599.1,4.52531033]
[1760131296325,0.29341704,3604.6,3602.2,0.00149]
[1760131296509,0.29341704,3604.6,3599.1,4.52531033]
[1760131296510,1.0,3599.2,3599.1,4.52531033]
[1760131296692,5.5372,3599.2,3599.1,4.52531033]
[1760131296893,0.34668456,3618.3,3599.1,3.28692318]
[1760131297087,0.36847142,3614.3,3599.1,3.28692318]
[1760131297341,0.36775874,3614.3,3599.1,1.23]
[1760131297488,5.5569,3599.2,3599.1,1.23]
[1760131297693,5.5569,3599.2,3599.1,1.10768261]
[1760131297990,0.09510132,3618.9,3599.1,0.67574982]
[1760131298210,0.40197925,3614.3,3599.1,0.67574982]
[1760131298639,0.68355446,3614.2,3599.1,1.90574982]
[1760131298809,0.39682443,3614.1,3599.1,1.90574982]
[1760131299189,0.19372309,3614.1,3599.1,1.90574982]
[1760131299389,0.63662332,3614.0,3599.1,1.90574982]
[1760131299638,0.20213594,3613.9,3599.1,1.90574982]
[1760131299795,0.20178746,3613.9,3599.2,0.37846247]
[1760131299989,0.14581709,3625.2,3603.2,1.34305127]
[1760131300227,0.14581709,3625.2,3608.4,4.493]
[1760131300427,0.14581709,3625.2,3603.3,3.13400209]
[1760131300428,0.37855963,3623.4,3603.4,1.38539845]
[1760131300600,0.35250319,3623.4,3603.5,1.24701742]
[1760131300942,0.14533517,3623.3,3607.1,4.493]
[1760131301224,1.39547713,3628.9,3607.6,2.335]
[1760131301430,1.36471812,3625.6,3604.9,2.174]
[1760131301589,4.49,3623.1,3606.5,0.26939062]
[1760131301922,4.49,3623.1,3595.1,1.39218382]
[1760131301923,1.22809501,3623.0,3587.6,1.37703363]
[1760131302121,0.36263386,3602.8,3590.6,0.11458564]
[1760131302324,1.36216864,3628.7,3605.0,0.36263386]
[1760131302623,1.37601727,3628.2,3613.7,4.488]
[1760131302835,1.37601727,3628.2,3602.4,2.334]
[1760131302836,1.38943149,3636.8,3613.8,2.333]
[1760131303002,0.179,3647.6,3613.8,2.333]
[1760131303003,0.82866289,3632.1,3631.1,0.14508723]
[1760131303192,0.14508723,3621.6,3616.6,0.1421]
[1760131303391,0.83470289,3632.1,3616.7,6.82]
[1760131303392,0.33108846,3630.7,3616.7,6.82]
[1760131303592,1.34431697,3637.5,3616.8,2.31089513]
[1760131303814,0.002,3638.7,3620.9,1.37312518]
[1760131304031,0.002,3638.7,3621.0,4.486]
[1760131304032,0.39161898,3637.4,3621.0,4.486]
[1760131304194,0.002,3638.7,3621.1,1.278]
[1760131304524,0.68156878,3638.1,3616.8,0.82423243]
[1760131304728,4.484,3631.8,3616.8,0.93781286]
[1760131304895,4.483,3632.4,3616.9,0.19014308]
[1760131305093,0.002,3638.7,3617.0,0.054]
[1760131305306,0.39454999,3632.3,3616.8,1.23]
[1760131305495,0.06650916,3632.2,3617.3,4.481]
[1760131305691,0.002,3638.7,3621.0,4.481]
[1760131305926,4.48,3634.6,3613.8,0.00149]
[1760131306101,2.509,3637.7,3613.9,0.50985239]
[1760131306102,0.1084971,3634.5,3613.9,0.50985239]
[1760131306305,1.71334923,3646.3,3619.7,1.3491156]
[1760131306507,0.28833126,3645.8,3629.4,4.48]
[1760131306702,0.002,3629.3,3628.0,0.42408557]
[1760131306915,0.002,3629.3,3628.1,4.478]
[1760131307096,1.71334923,3646.3,3629.2,4.477]
[1760131307297,0.14418786,3657.6,3632.4,0.004]
[1760131307499,0.14418786,3657.6,3632.5,0.4130785]
[1760131307706,0.179,3672.2,3625.1,0.00149]
[1760131307707,0.58863089,3682.0,3645.6,1.34251362]
[1760131307916,0.179,3711.6,3656.8,1.31743438]
[1760131307917,0.14574813,3665.3,3656.8,1.31743438]
[1760131308126,0.64174328,3678.9,3659.4,4.474]
[1760131308305,0.50625922,3679.1,3662.8,4.474]
[1760131308503,0.50625922,3679.1,3653.2,2.327]
[1760131308504,0.1421036,3678.8,3655.5,0.00148]
[1760131308812,0.50625922,3679.1,3667.8,4.472]
[1760131308813,0.1421036,3678.7,3667.8,4.472]
[1760131308993,0.22346414,3680.0,3667.9,1.991]
[1760131309199,2.324,3698.8,3671.0,3.84120717]
[1760131309413,2.324,3698.8,3667.9,1.991]
[1760131309414,1.36093674,3712.2,3686.2,4.47]
[1760131309732,2.324,3714.8,3686.4,1.30314351]
[1760131309733,0.14453794,3698.9,3686.4,1.30314351]
[1760131309930,0.42590429,3699.9,3686.6,1.32055673]
[1760131310111,2.321,3713.3,3678.8,0.00147]
[1760131310112,1.35027905,3706.6,3682.7,2.99]
[1760131310310,1.39490955,3699.7,3682.7,2.99]
[1760131310605,0.20641059,3699.6,3679.7,4.462]
[1760131310820,1.33220239,3699.5,3679.6,4.462]
[1760131311135,0.10911042,3699.4,3695.8,1.38619601]
[1760131311330,0.80862642,3729.4,3695.9,1.218]
[1760131311331,0.1421036,3707.1,3695.9,1.218]
[1760131311507,0.14354903,3693.0,3688.4,0.00146]
[1760131311698,0.128,3706.5,3681.0,0.00147]
[1760131311899,0.02428863,3696.7,3681.1,1.01]
[1760131312126,0.23443408,3696.9,3681.6,1.37771163]
[1760131312436,4.454,3719.6,3688.2,4.454]
[1760131312606,0.0960764,3705.5,3688.3,5.089]
[1760131312811,0.29420137,3705.4,3691.3,2.315]
[1760131313010,0.1421036,3705.3,3695.7,1.38027882]
[1760131313328,0.46665372,3719.5,3698.5,2.313]
[1760131313651,0.15157465,3688.0,3682.4,1.156]
[1760131313828,2.312,3702.4,3682.5,1.34095509]
[1760131314033,0.15303465,3682.3,3677.9,1.33114483]
[1760131314239,0.00146,3697.0,3679.5,1.999]
[1760131314399,0.00146,3697.0,3677.9,1.33114483]
[1760131314599,0.00146,3697.0,3681.0,0.89642417]
[1760131315027,0.00146,3697.0,3681.1,0.03794688]
[1760131315335,0.00146,3697.0,3678.1,1.23]
[1760131315628,0.00146,3697.0,3678.2,0.41046785]
[1760131315800,0.00146,3697.0,3681.1,1.23]
[1760131315997,0.00146,3697.0,3681.2,4.434]
[1760131316198,1.38632752,3711.9,3688.6,3.434]
[1760131316404,4.434,3710.7,3688.7,2.271]
[1760131316613,4.434,3710.7,3686.9,1.39692915]
[1760131316614,0.32169791,3710.6,3665.1,1.31552265]
[1760131316813,0.22699795,3688.7,3676.5,4.432]
[1760131317015,1.10575119,3688.6,3676.5,4.432]
[1760131317213,6.734,3698.8,3681.1,2.46]
[1760131317433,4.428,3710.8,3692.1,1.35877321]
[1760131317622,4.428,3710.8,3681.1,2.46]
[1760131317623,1.33176363,3710.6,3699.2,0.29160881]
[1760131317823,1.33176363,3710.6,3684.4,0.13949]
[1760131317824,0.37038094,3686.9,3684.4,0.13949]
[1760131318046,0.29160881,3697.7,3681.9,0.13]
[1760131318047,4.426,3697.7,3681.9,0.13]
[1760131318252,0.0046,3697.0,3681.1,2.46]
[1760131318543,4.425,3695.2,3686.9,0.00280631]
[1760131318730,4.425,3695.2,3681.1,3.69]
[1760131318912,0.00280631,3686.9,3681.1,3.69]
[1760131319114,4.423,3696.2,3681.1,3.69]
[1760131319348,0.75802864,3695.4,3681.2,0.12421144]
[1760131319648,0.15886215,3695.8,3683.5,4.423]
[1760131319853,0.00147,3697.7,3688.3,4.422]
[1760131320145,0.28681676,3707.4,3692.6,1.30543177]
[1760131320313,0.30174343,3706.8,3691.9,4.14531309]
[1760131320516,0.24711413,3711.8,3691.9,3.73757846]
[1760131320709,4.419,3717.5,3692.0,1.382]
[1760131320940,0.16872909,3717.4,3692.1,2.298]
[1760131321243,0.16872909,3717.4,3689.5,2.298]
[1760131321244,0.5267479,3717.3,3698.3,2.297]
[1760131321444,4.417,3717.2,3698.4,0.15108954]
[1760131321632,4.417,3717.2,3695.3,2.297]
[1760131321633,4.415,3715.6,3692.0,1.23]
[1760131321833,4.415,3694.2,3684.6,0.00148]
[1760131322041,2.294,3684.7,3662.5,2.97497]
[1760131322351,4.413,3663.0,3640.9,2.99262]
[1760131322555,4.413,3663.0,3641.1,1.36177251]
[1760131322556,2.294,3662.8,3641.1,1.36177251]
[1760131322716,4.41,3663.2,3641.3,1.35441391]
[1760131322921,1.33283702,3665.3,3662.9,1.23]
[1760131323118,0.82217121,3663.1,3644.9,2.293]
[1760131323350,0.07273616,3691.9,3661.8,1.0]
[1760131323556,0.67783744,3676.5,3676.4,1.0]
[1760131323738,4.409,3704.2,3676.6,1.36573616]
[1760131323918,4.409,3704.2,3676.4,2.293]
[1760131323919,0.01851544,3704.1,3676.7,0.1294753]
[1760131324123,0.67783744,3678.9,3676.9,1.35597285]
[1760131324330,1.39713821,3717.3,3685.2,0.37258817]
[1760131324528,2.292,3716.0,3687.2,2.292]
[1760131324750,0.81274052,3704.6,3686.5,0.39625944]
[1760131324914,4.408,3696.6,3679.8,0.00149]
[1760131325114,2.292,3687.6,3672.4,0.00149]
[1760131325427,2.291,3676.8,3663.1,0.12939827]
[1760131325632,2.291,3676.8,3644.2,2.291]
[1760131325633,1.34175071,3680.4,3652.7,2.291]
[1760131325946,1.34175071,3680.4,3633.8,0.04552]
[1760131325947,1.31142956,3675.1,3652.8,4.26138647]
[1760131326125,1.39378198,3676.7,3662.1,4.405]
[1760131326442,1.39378198,3676.7,3651.2,2.29]
[1760131326443,1.3589142,3697.9,3662.3,1.36849233]
[1760131326622,1.36187725,3697.7,3675.0,4.404]
[1760131326825,1.31272501,3733.9,3697.6,4.403]
[1760131327148,0.24802928,3717.2,3701.5,2.04829244]
[1760131327336,1.36203739,3719.3,3701.7,4.403]
[1760131327516,0.32573186,3696.7,3694.1,0.00149]
[1760131327712,2.289,3707.0,3686.7,0.00149]
[1760131327913,2.288,3690.2,3664.6,2.97327]
[1760131328113,2.288,3684.7,3659.4,4.401]
[1760131328321,1.37056594,3684.5,3659.2,1.3922848]
[1760131328535,2.41435387,3684.6,3670.6,1.23]
[1760131328536,1.34180988,3680.1,3670.6,1.23]
[1760131328748,1.36971269,3686.3,3670.6,1.23]
[1760131328952,1.31727167,3704.8,3691.3,1.0]
[1760131329119,1.30793766,3719.4,3702.3,4.399]
[1760131329314,1.30793766,3719.4,3702.4,4.684]
[1760131329315,1.55539385,3719.4,3702.4,4.684]
[1760131329519,0.37376452,3719.3,3702.4,4.399]
[1760131329757,1.36377571,3720.8,3700.4,2.287]
[1760131329940,1.36377571,3720.8,3657.9,0.15]
[1760131329941,1.8859,3718.5,3700.5,4.574]
[1760131330255,0.80712964,3728.0,3709.3,4.396]
[1760131330456,0.14116297,3726.7,3716.9,2.285]
[1760131330629,5.11411,3728.0,3715.2,1.018]
[1760131330957,0.14262366,3726.7,3715.3,0.34138232]
[1760131331161,0.14262366,3726.7,3713.1,4.394]
[1760131331359,0.34138232,3714.6,3713.2,1.252]
[1760131331523,0.00149,3726.7,3724.1,0.34138232]
[1760131331719,0.06213014,3718.7,3713.3,0.2405013]
[1760131331933,0.06213014,3718.7,3702.3,3.513]
[1760131331934,0.2451813,3711.5,3707.6,0.214]
[1760131332251,2.282,3730.7,3709.3,4.39]
[1760131332468,0.36254774,3732.6,3708.6,2.283]
[1760131332469,0.14113292,3719.7,3711.3,4.388]
[1760131332671,0.14113292,3719.7,3704.7,2.283]
[1760131332672,0.14113292,3719.7,3716.9,1.23]
[1760131332871,0.14113292,3719.7,3716.9,0.83178645]
[1760131332872,10.49291,3719.7,3716.9,0.83178645]
[1760131333078,0.54339093,3716.5,3706.3,4.384]
[1760131333373,0.02760723,3707.3,3706.4,1.953]
[1760131333681,1.34755607,3730.9,3706.6,1.37083018]
[1760131333896,0.14108452,3727.8,3718.9,4.382]
[1760131334168,0.54653051,3727.7,3716.9,1.951]
[1760131334371,0.8924206,3727.7,3717.0,0.869]
[1760131334573,0.54247612,3716.9,3713.3,1.23]
[1760131334868,0.54247612,3716.9,3713.4,6.719]
[1760131334869,1.88589,3716.9,3713.4,6.719]
[1760131335088,7.0,3716.9,3713.4,6.719]
[1760131335290,0.5009192,3716.8,3713.3,1.23]
[1760131335960,5.8844192,3716.8,3713.3,1.23]
[1760131336165,0.19815763,3712.9,3705.9,0.0015]
[1760131336352,2.275,3706.0,3698.5,0.0015]
[1760131336553,4.375,3701.0,3683.7,0.1469]
[1760131336768,2.275,3705.8,3679.9,0.041]
[1760131336769,4.375,3700.1,3679.9,0.041]
[1760131336968,2.274,3697.5,3683.8,0.11358043]
[1760131337293,2.274,3697.5,3674.8,2.274]
[1760131337294,6.93616099,3697.4,3677.7,0.032]
[1760131337461,4.373,3692.8,3677.8,0.19124068]
[1760131337653,2.274,3691.1,3676.0,0.5961007]
[1760131337852,4.373,3676.1,3663.0,0.14773]
[1760131338073,2.274,3671.3,3655.9,0.14802]
[1760131338381,2.274,3666.8,3648.8,0.042]
[1760131338580,0.648,3666.7,3643.2,0.185]
[1760131338768,2.274,3666.0,3643.8,2.274]
[1760131338953,4.374,3665.7,3648.4,0.29592425]
[1760131339151,4.374,3665.7,3644.1,0.24223046]
[1760131339152,5.4689,3665.7,3648.5,0.10386949]
[1760131339354,2.274,3657.7,3648.6,0.18207863]
[1760131339553,2.274,3657.7,3636.1,0.61472885]
[1760131339783,4.376,3644.5,3636.1,0.61472885]
[1760131339982,2.275,3646.8,3636.1,0.61321885]
[1760131340188,4.378,3645.1,3628.8,0.00149]
[1760131340491,1.54412676,3646.0,3637.4,1.0]
[1760131340700,2.277,3673.8,3654.7,0.71993736]
[1760131340998,1.37748577,3691.3,3670.6,1.23]
[1760131341200,1.34250662,3689.9,3670.6,1.08703973]
[1760131341402,1.35356384,3686.4,3670.6,1.08703973]
[1760131341581,2.499,3686.3,3686.2,2.0]
[1760131341785,0.23285567,3682.8,3678.8,0.00147]
[1760131341974,1.32824115,3682.7,3671.4,0.00147]
[1760131342171,4.384,3675.8,3664.1,0.00148]
[1760131342397,4.384,3668.4,3656.8,0.00148]
[1760131342593,4.384,3668.3,3656.9,0.14574813]
[1760131342772,1.59369118,3668.2,3656.9,0.25607642]
[1760131342972,4.385,3680.3,3668.8,0.46035561]
[1760131343197,5.3991,3675.8,3668.2,0.78051523]
[1760131343395,5.3991,3675.8,3662.1,2.28]
[1760131343396,7.0,3680.3,3677.1,0.86042324]
[1760131343722,7.0,3680.3,3668.9,0.61282327]
[1760131343723,5.4367,3680.3,3669.7,0.00147]
[1760131343871,6.232,3680.2,3666.4,0.11358043]
[1760131344066,11.6687,3680.2,3669.8,0.11358043]
[1760131344376,11.6687,3680.2,3662.5,0.00148]
[1760131344581,0.4479,3745.1,3659.9,0.05]
[1760131344582,4.386,3676.5,3659.9,0.05]
[1760131344771,2.28,3677.3,3656.0,2.28]
[1760131344772,4.386,3677.3,3661.9,0.14574813]
[1760131344972,4.386,3682.5,3662.2,4.386]
[1760131345173,4.386,3682.3,3670.7,1.23]
[1760131345474,0.32899583,3683.3,3670.7,1.47999533]
[1760131345673,0.81009158,3713.7,3670.7,1.47999533]
[1760131345674,4.386,3695.3,3675.1,2.281]
[1760131345892,2.281,3697.4,3675.2,6.707]
[1760131345893,4.386,3695.8,3675.2,6.707]
[1760131346101,4.386,3695.8,3675.3,2.271]
[1760131346402,0.21345595,3692.1,3675.3,2.271]
[1760131346611,0.17664762,3691.3,3679.0,1.39244683]
[1760131346764,2.28,3694.3,3675.4,1.73152568]
[1760131346962,10.06310692,3691.3,3672.8,2.296]
[1760131347191,10.06310692,3691.3,3670.7,2.55465995]
[1760131347192,4.385,3684.0,3670.7,1.23]
[1760131347392,2.28,3678.5,3663.4,0.00148]
[1760131347596,6.665,3663.5,3656.1,0.00148]
[1760131347811,8.945,3657.0,3635.0,3.01484]
[1760131348014,4.385,3654.4,3633.0,0.887]
[1760131348309,4.384,3634.6,3617.0,1.37429987]
[1760131348518,4.384,3637.2,3613.3,1.36199089]
[1760131348728,4.384,3630.7,3592.1,3.05084]
[1760131349010,4.385,3628.7,3607.9,0.14574813]
[1760131349316,4.385,3628.7,3605.7,1.3828106]
[1760131349317,2.28,3626.4,3604.1,1.516]
[1760131349606,0.62714761,3656.3,3629.9,0.15303465]
[1760131349768,0.62714761,3656.3,3619.9,2.28]
[1760131349769,5.4938,3651.1,3651.0,6.666]
[1760131349977,4.391,3681.6,3651.0,11.28256006]
[1760131350177,5.219,3683.5,3651.1,1.632]
[1760131350178,0.175,3682.6,3651.1,1.632]
[1760131350503,4.391,3669.4,3651.1,0.29689141]
[1760131350705,1.39674813,3669.3,3651.2,6.674]
[1760131351015,1.39674813,3669.3,3643.7,0.00149]
[1760131351016,4.394,3676.6,3656.9,4.394]
[1760131351313,0.11358043,3676.5,3657.0,1.902]
[1760131351613,0.12624221,3677.8,3657.1,4.396]
[1760131351815,0.61234072,3678.1,3657.1,4.396]
[1760131351816,4.396,3676.1,3657.1,4.396]
[1760131351977,3.915,3676.0,3656.9,1.23]
[1760131352178,0.22260329,3676.0,3660.8,4.396]
[1760131352390,0.34155585,3675.9,3666.0,2.286]
[1760131352615,0.61234072,3678.1,3670.3,4.397]
[1760131352800,0.40044439,3679.2,3670.4,1.017]
[1760131353110,0.28313452,3680.7,3670.4,1.017]
[1760131353278,0.32313537,3687.8,3646.8,0.02261389]
[1760131353279,0.28347618,3679.1,3646.8,0.02261389]
[1760131353479,0.28347618,3679.1,3655.7,0.00148]
[1760131353480,4.397,3665.2,3655.7,0.00148]
[1760131353687,4.397,3662.6,3646.8,0.02261389]
[1760131353977,4.397,3662.6,3635.0,3.01484]
[1760131353978,0.30290691,3664.1,3646.4,0.36023525]
[1760131354178,0.01154321,3662.5,3646.5,0.23064537]
[1760131354418,4.397,3648.7,3642.5,0.1203399]
[1760131354579,4.397,3648.7,3622.5,2.286]
[1760131354580,0.28657217,3662.4,3651.0,1.23]
[1760131354910,2.286,3658.4,3651.1,0.11358043]
[1760131355136,4.397,3656.7,3651.0,1.23]
[1760131355448,4.397,3656.7,3637.4,0.598]
[1760131355449,3.915,3656.6,3633.0,4.397]
[1760131355739,2.28749,3658.4,3551.4,1.92]
[1760131355740,4.398,3651.2,3636.5,0.08836388]
[1760131355902,2.287,3649.8,3636.6,0.23499767]
[1760131356236,0.651,3654.6,3636.7,0.48734244]
[1760131356436,1.38549004,3651.4,3650.4,1.07950149]
[1760131356604,0.175,3651.5,3635.8,0.14812]
[1760131356605,8.972,3650.5,3635.8,0.14812]
[1760131356804,4.399,3637.9,3635.5,0.37421489]
[1760131357006,0.175,3636.4,3614.1,1.3304736]
[1760131357211,3.925,3636.3,3621.4,0.14363137]
[1760131357409,2.288,3639.1,3636.8,0.01449055]
[1760131357608,2.36583215,3639.0,3635.7,0.12760822]
[1760131357942,2.36583215,3639.0,3622.4,0.13168224]
[1760131357943,2.33707834,3639.0,3622.4,0.13168224]
[1760131358105,2.288,3633.9,3622.5,0.22432771]
[1760131358437,2.289,3631.3,3610.2,4.402]
[1760131358604,1.018,3633.8,3602.2,1.30442202]
[1760131358605,1.92,3612.2,3602.2,1.30442202]
[1760131358803,1.92,3612.2,3610.3,0.24330163]
[1760131358804,1.46474237,3612.2,3610.3,0.24330163]
[1760131359003,0.98112351,3612.2,3608.5,0.48361886]
[1760131359229,0.4449,3642.7,3608.5,0.16843202]
[1760131359505,0.4449,3638.2,3608.6,0.17029455]
[1760131359706,11.47970282,3690.8,3608.4,0.62093761]
[1760131359707,1.0220731,3633.8,3608.4,0.62093761]
[1760131359906,0.4449,3633.7,3608.7,0.26417774]
[1760131360128,0.97482023,3634.5,3608.8,0.3109]
[1760131360326,0.828404,3633.6,3608.8,0.3109]
[1760131360505,0.30265856,3633.8,3608.8,0.3109]
[1760131360702,0.2247,3642.5,3608.9,0.26407469]
[1760131360703,1.02175197,3633.5,3608.9,0.26407469]
[1760131360937,1.3065143,3633.4,3610.3,0.001]
[1760131361107,0.3979564,3633.3,3610.3,0.001]
[1760131361305,0.72552775,3633.2,3610.3,0.001]
[1760131361507,0.89335056,3633.2,3610.3,0.001]
[1760131361702,0.41785309,3633.1,3609.9,0.001]
[1760131361907,0.41785309,3633.1,3609.5,0.001]
[1760131361908,1.02760077,3633.0,3609.5,0.001]
[1760131362135,0.176,3624.6,3591.0,0.54048501]
[1760131362337,2.296,3622.3,3591.1,0.33454447]
[1760131362539,2.297,3597.4,3591.0,0.14574813]
[1760131362741,0.4449,3603.6,3572.4,1.34972957]
[1760131362941,0.176,3603.4,3569.5,1.92]
[1760131363144,0.3998273,3603.5,3567.2,1.8043087]
[1760131363145,0.37959905,3603.3,3581.2,0.30195918]
[1760131363445,0.31581259,3603.2,3581.3,0.043]
[1760131363646,0.4449,3622.9,3604.8,0.15695953]
[1760131363844,1.37507226,3604.8,3583.3,1.3614037]
[1760131364146,0.177,3587.9,3562.2,1.33667456]
[1760131364446,1.40168421,3587.7,3555.1,1.30164843]
[1760131364651,2.302,3578.7,3555.2,0.20472966]
[1760131364946,0.62349664,3580.2,3555.3,0.11358043]
[1760131365120,0.79596637,3578.6,3558.6,1.92]
[1760131365323,2.303,3581.2,3558.7,0.40201343]
[1760131365534,0.8395354,3589.4,3564.5,1.92]
[1760131365724,0.8395354,3589.4,3557.3,0.1421036]
[1760131365725,1.92,3596.6,3565.7,1.92]
[1760131366046,0.4449,3595.4,3578.4,1.37421196]
[1760131366212,0.29922815,3595.3,3581.5,1.38905183]
[1760131366417,0.29922815,3595.3,3569.2,1.92]
[1760131366418,0.23417849,3603.7,3574.9,1.3022154]
[1760131366613,0.2277,3683.5,3603.6,2.308]
[1760131366614,1.30596594,3633.8,3603.6,2.308]
[1760131366813,0.2277,3683.5,3633.7,6.747]
[1760131366814,1.34379664,3666.5,3633.7,6.747]
[1760131367047,0.288185,3656.6,3645.9,0.177]
[1760131367247,0.1439399,3661.7,3635.0,0.00422]
[1760131367450,0.1439399,3661.7,3624.0,3.02399]
[1760131367451,6.752,3661.6,3635.1,0.021]
[1760131367749,1.35802853,3658.9,3634.5,4.444]
[1760131367917,1.35802853,3658.9,3626.1,2.311]
[1760131367918,1.33825673,3655.1,3624.5,4.444]
[1760131368256,1.33825673,3655.1,3609.7,0.177]
[1760131368257,4.446,3649.5,3624.6,0.29329737]
[1760131368553,4.446,3638.0,3616.3,4.446]
[1760131368753,4.447,3635.4,3620.5,0.29648973]
[1760131369053,4.447,3642.9,3622.9,4.447]
[1760131369215,4.447,3649.4,3624.1,4.447]
[1760131369416,1.0700472,3649.3,3624.2,0.43360424]
[1760131369641,4.447,3649.2,3629.4,4.447]
[1760131369855,4.447,3649.2,3622.8,2.312]
[1760131369856,2.313,3652.5,3632.6,4.448]
[1760131370072,2.313,3652.5,3629.5,1.543]
[1760131370073,2.313,3659.0,3640.0,4.448]
[1760131370268,0.177,3665.3,3632.7,2.95123749]
[1760131370269,1.33331078,3664.8,3646.4,4.448]
[1760131370472,0.3521019,3658.9,3656.1,2.313]
[1760131370646,0.01,4390.9,3658.8,6.939]
[1760131370647,0.14307548,3666.0,3658.8,6.939]
[1760131370971,1.33417965,3699.4,3666.8,1.37714734]
[1760131371176,0.14280008,3677.9,3657.8,0.76508891]
[1760131371396,3.961,3677.8,3666.9,0.15516742]
[1760131371675,4.448,3668.3,3655.9,0.00419]
[1760131371837,0.00419,3668.3,3652.7,0.069]
[1760131372033,1.35302149,3693.2,3652.7,0.069]
[1760131372034,4.447,3689.6,3661.8,4.447]
[1760131372259,0.11358043,3689.5,3660.5,0.21801808]
[1760131372458,4.444,3684.5,3660.0,4.447]
[1760131372776,4.444,3676.3,3655.8,1.297]
[1760131372937,1.366,3676.2,3649.4,1.38120655]
[1760131373272,4.442,3675.3,3649.2,1.147]
[1760131373472,4.442,3675.8,3653.4,4.442]
[1760131373843,1.701,3675.7,3653.5,6.99186925]
[1760131373990,4.44,3679.9,3660.6,4.439]
[1760131374288,2.42258043,3681.0,3660.7,1.57]
[1760131374495,4.439,3682.0,3657.0,2.308]
[1760131374496,1.0,3678.6,3661.5,4.439]
[1760131374661,0.11358043,3678.6,3661.5,4.439]
[1760131374847,0.42153835,3678.5,3661.6,0.31180571]
[1760131375048,0.22255528,3678.4,3655.7,0.318]
[1760131375271,0.22255528,3678.4,3647.5,2.307]
[1760131375272,0.32348685,3678.3,3655.8,5.45232011]
[1760131375578,4.435,3678.2,3658.1,4.435]
[1760131375781,4.435,3678.2,3658.2,1.682]
[1760131376281,4.435,3678.2,3658.3,0.9708505]
[1760131376577,1.0,3678.6,3660.1,2.305]
[1760131376785,1.0,3678.6,3671.6,4.433]
[1760131376959,0.445,3687.1,3671.7,0.153]
[1760131377281,4.433,3685.3,3667.8,4.433]
[1760131377588,5.0473,3687.0,3667.9,4.74230102]
[1760131377589,0.4383,3687.0,3667.9,4.74230102]
[1760131377791,0.4383,3687.2,3667.9,2.20780318]
[1760131377962,14.34114684,3668.4,3667.9,1.41]
[1760131378286,12.6287626,3668.4,3668.0,0.38476986]
[1760131378485,0.4383,3682.5,3671.3,0.18835108]
[1760131378660,0.4383,3682.5,3667.9,4.41]
[1760131378864,0.4383,3682.5,3668.0,0.46859463]
[1760131379065,0.4383,3682.5,3667.9,3.0]
[1760131379265,0.4383,3682.5,3675.9,0.99999999]
[1760131379461,0.4383,3682.5,3667.9,3.0]
[1760131379462,0.99999999,3676.9,3667.9,3.0]
[1760131379858,0.4383,3682.5,3667.9,3.0]
[1760131379859,4.425,3681.8,3667.9,3.0]
[1760131380060,0.27625812,3681.7,3668.0,4.425]
[1760131380378,4.425,3681.8,3668.1,2.3]
[1760131380879,2.299,3686.8,3671.6,1.23]
[1760131381189,0.4383,3683.9,3671.6,1.23]
[1760131381402,0.4383,3683.8,3671.7,4.772]
[1760131381589,5.8764,3683.8,3671.7,0.73101479]
[1760131381889,0.4383,3683.7,3671.8,0.34065385]
[1760131382089,4.42,3683.6,3671.6,1.23]
[1760131382295,0.4383,3683.5,3671.7,4.3]
[1760131382460,4.419,3678.5,3662.7,1.612]
[1760131382796,4.419,3673.2,3656.9,0.00405]
[1760131383094,4.418,3660.4,3646.2,0.00407]
[1760131383261,6.715,3650.9,3642.7,0.18275171]
[1760131383459,2.7568,3660.3,3628.1,0.14959]
[1760131383460,2.296,3644.5,3628.1,0.14959]
[1760131383694,4.416,3637.9,3621.2,0.042]
[1760131383878,4.416,3630.4,3621.6,0.1421036]
[1760131384066,4.416,3630.4,3615.8,1.798]
[1760131384067,2.296,3626.3,3602.3,1.34068033]
[1760131384274,0.99999999,3625.4,3598.9,0.4726]
[1760131384494,0.1425,3637.6,3630.6,0.09833441]
[1760131384797,0.1425,3637.6,3625.3,4.592]
[1760131384798,0.4383,3672.8,3654.6,0.80497313]
[1760131385102,2.298,3701.8,3672.3,0.80497313]
[1760131385103,4.416,3689.3,3672.3,0.80497313]
[1760131385305,4.418,3695.9,3672.4,2.297]
[1760131385492,4.418,3695.9,3686.9,0.49497895]
[1760131385695,2.297,3701.2,3679.5,0.47]
[1760131385696,5.02415546,3691.4,3679.5,0.47]
[1760131385918,0.15303465,3681.4,3668.5,0.00406]
[1760131386080,0.15303465,3681.4,3657.4,2.99637]
[1760131386081,1.302,3681.3,3676.6,0.49497895]
[1760131386304,1.302,3681.3,3657.5,0.00407]
[1760131386305,2.299,3687.0,3678.2,0.49497895]
[1760131386593,0.002,3687.0,3674.6,4.418]
[1760131386788,0.002,3687.0,3668.5,1.3353342]
[1760131386789,4.418,3680.8,3663.6,0.00406]
[1760131386989,1.34442297,3676.5,3663.7,0.05969572]
[1760131387170,4.418,3676.6,3673.5,0.49497895]